bitfinex/quotes_BTCUSD_20250226
["timestamp","ask_amount","ask_price","bid_price","bid_amount"]
[1740591014334,8.2e-07,87277.0,87276.0,0.489869]
[1740591014549,8.2e-07,87277.0,87276.0,0.61715738]
[1740591014750,8.2e-07,87277.0,87276.0,0.68415738]
[1740591015163,0.00485,87294.0,87285.0,0.50439185]
[1740591015501,0.00485,87294.0,87285.0,0.61713938]
[1740591015502,0.00104055,87286.0,87285.0,0.61713938]
[1740591015856,0.00104055,87286.0,87285.0,0.69633938]
[1740591016060,0.00104055,87286.0,87285.0,2.19533938]
[1740591016261,0.00485,87307.0,87302.0,0.3]
[1740591016466,0.00485,87307.0,87303.0,0.3]
[1740591016676,0.171811,87305.0,87304.0,0.01454085]
[1740591016868,0.00485,87307.0,87303.0,0.3]
[1740591017072,0.0046981,87307.0,87306.0,0.48634985]
[1740591018483,0.003999,87332.0,87319.0,0.471783]
[1740591018704,0.17675433,87320.0,87319.0,0.3]
[1740591019101,0.171801,87310.0,87306.0,0.007]
[1740591019306,0.00497333,87320.0,87306.0,0.014]
[1740591019505,0.171806,87308.0,87306.0,0.014]
[1740591019716,0.171807,87307.0,87306.0,0.014]
[1740591020297,0.229055,87316.0,87306.0,0.014]
[1740591020478,0.003999,87311.0,87308.0,0.3]
[1740591020885,0.171803,87309.0,87308.0,0.3]
[1740591021307,0.003999,87307.0,87306.0,0.007]
[1740591021514,0.003999,87301.0,87265.0,0.229186]
[1740591021715,0.003999,87298.0,87277.0,0.01096]
[1740591021927,0.003999,87298.0,87258.0,1.1334253]
[1740591021928,0.003999,87286.0,87285.0,0.0008456]
[1740591022133,0.296047,87286.0,87285.0,0.0008456]
[1740591022331,0.12465078,87286.0,87260.0,0.3273]
[1740591022560,0.12465078,87286.0,87243.0,0.3273]
[1740591022561,0.003999,87255.0,87243.0,0.3273]
[1740591022769,0.36672645,87274.0,87243.0,0.3273]
[1740591022770,0.17593,87244.0,87243.0,0.3273]
[1740591023121,0.171943,87238.0,87237.0,0.005]
[1740591023465,0.171943,87238.0,87237.0,0.00541142]
[1740591023668,0.171943,87238.0,87237.0,1.50541142]
[1740591023988,0.175917,87251.0,87239.0,0.229255]
[1740591024186,0.09170368,87273.0,87243.0,0.006]
[1740591024187,0.003999,87260.0,87243.0,0.006]
[1740591024422,0.229218,87253.0,87244.0,0.01454085]
[1740591024622,0.171915,87253.0,87246.0,0.01454085]
[1740591024836,0.003999,87260.0,87252.0,1.5]
[1740591025013,0.003999,87262.0,87254.0,0.01454085]
[1740591025212,0.171904,87258.0,87256.0,0.01454085]
[1740591025416,0.171901,87260.0,87256.0,0.01454085]
[1740591025621,0.175906,87256.0,87255.0,0.3273]
[1740591025806,0.003999,87256.0,87255.0,0.3273]
[1740591026002,0.175906,87256.0,87255.0,0.3273]
[1740591027029,0.175942,87238.0,87225.0,0.3273]
[1740591027662,0.171943,87238.0,87225.0,0.3273]
[1740591027855,0.171943,87238.0,87204.0,0.3273]
[1740591028077,0.3116,87237.0,87199.0,0.005]
[1740591028229,0.26367268,87225.0,87224.0,0.00512335]
[1740591028630,0.171969,87225.0,87224.0,0.00512335]
[1740591030629,0.171969,87225.0,87224.0,0.00812335]
[1740591031091,0.172969,87225.0,87224.0,0.00512335]
[1740591031310,0.171969,87225.0,87224.0,0.00912335]
[1740591031517,0.171969,87225.0,87224.0,0.00512335]
[1740591031724,0.171969,87225.0,87224.0,0.00612335]
[1740591032140,0.171969,87225.0,87224.0,0.00512335]
[1740591032968,0.171969,87225.0,87224.0,0.00812335]
[1740591033392,0.171969,87225.0,87224.0,0.00596895]
[1740591033591,0.172969,87225.0,87224.0,0.00596895]
[1740591033799,0.172969,87225.0,87224.0,1.50596895]
[1740591034007,0.171969,87225.0,87224.0,1.50596895]
[1740591034285,0.003,87225.0,87224.0,1.50596895]
[1740591034480,0.003,87225.0,87224.0,1.67793995]
[1740591034747,0.002,87225.0,87224.0,1.97793995]
[1740591034926,0.002,87225.0,87224.0,1.80896895]
[1740591035378,0.002,87225.0,87224.0,1.9954808]
[1740591035590,0.002,87225.0,87224.0,2.3227808]
[1740591035851,0.002,87225.0,87224.0,2.3237808]
[1740591036503,0.0495,87268.0,87225.0,0.3]
[1740591036715,0.171952,87234.0,87227.0,0.3]
[1740591036863,0.171952,87234.0,87228.0,0.3273]
[1740591036864,0.229269,87234.0,87228.0,0.3273]
[1740591037088,0.171961,87229.0,87228.0,0.3273]
[1740591037281,0.0278174,87268.0,87229.0,0.3]
[1740591037492,0.171951,87235.0,87229.0,0.299]
[1740591037670,0.3,87267.0,87228.0,0.3273]
[1740591037871,0.229213,87255.0,87228.0,0.3273]
[1740591038163,0.001,87234.0,87228.0,0.3273]
[1740591038325,0.229263,87236.0,87228.0,0.3273]
[1740591038570,0.46074236,87271.0,87228.0,0.3273]
[1740591038771,0.171961,87229.0,87228.0,0.3273]
[1740591038978,0.343788,87263.0,87228.0,0.3273]
[1740591039180,0.171961,87229.0,87228.0,0.3273]
[1740591039478,0.171969,87225.0,87224.0,1.50596895]
[1740591039621,0.171969,87225.0,87224.0,0.00596895]
[1740591040815,0.173969,87225.0,87224.0,0.00596895]
[1740591041205,0.002,87225.0,87224.0,0.00596895]
[1740591041413,0.173969,87225.0,87224.0,0.01096895]
[1740591041986,0.002,87225.0,87224.0,0.01296895]
[1740591042597,0.002,87225.0,87224.0,0.01096895]
[1740591042795,0.002,87225.0,87224.0,1.51296895]
[1740591043351,0.3,87259.0,87224.0,1.67993895]
[1740591043760,0.3,87259.0,87224.0,1.84026895]
[1740591044106,0.171969,87225.0,87224.0,0.33526895]
[1740591044323,0.171969,87225.0,87224.0,0.01196895]
[1740591044324,0.172969,87225.0,87224.0,0.01196895]
[1740591044532,0.171992,87213.0,87188.0,0.5478]
[1740591044739,0.171992,87213.0,87212.0,0.0051235]
[1740591047867,0.172992,87213.0,87212.0,0.0051235]
[1740591048310,0.21888252,87213.0,87212.0,0.0051235]
[1740591048486,0.171992,87213.0,87212.0,0.0051235]
[1740591049016,0.471992,87213.0,87212.0,0.0051235]
[1740591049218,0.172022,87198.0,87186.0,0.005]
[1740591049376,0.172022,87198.0,87197.0,0.00097007]
[1740591049377,0.472022,87198.0,87197.0,0.00097007]
[1740591049578,0.24032,87200.0,87197.0,0.00097007]
[1740591049784,0.172022,87198.0,87197.0,7e-08]
[1740591050024,0.177022,87198.0,87197.0,7e-08]
[1740591050341,0.17923163,87198.0,87197.0,7e-08]
[1740591050550,0.17923163,87198.0,87186.0,0.005]
[1740591050551,0.172043,87187.0,87186.0,7e-08]
[1740591052200,0.176043,87187.0,87186.0,7e-08]
[1740591052825,0.17435902,87187.0,87186.0,7e-08]
[1740591053028,0.02,87185.0,87179.0,7e-08]
[1740591053241,0.172057,87180.0,87179.0,7e-08]
[1740591054089,0.192069,87174.0,87173.0,7e-08]
[1740591054303,0.851329,87174.0,87173.0,7e-08]
[1740591054478,0.85364502,87174.0,87173.0,7e-08]
[1740591054721,0.192095,87161.0,87149.0,0.000846]
[1740591054930,0.172095,87161.0,87160.0,0.0054119]
[1740591055538,0.177507,87161.0,87160.0,0.0054119]
[1740591056905,0.181507,87161.0,87160.0,0.0054119]
[1740591057497,0.184095,87161.0,87160.0,0.0054119]
[1740591057697,0.180095,87161.0,87160.0,0.0054119]
[1740591057813,0.172095,87161.0,87160.0,0.0054119]
[1740591058014,0.176095,87161.0,87160.0,1.5054119]
[1740591058235,0.004,87161.0,87160.0,1.5054119]
[1740591058672,0.172095,87161.0,87160.0,1.5054119]
[1740591059086,0.175095,87161.0,87160.0,1.5054119]
[1740591059301,0.172095,87161.0,87160.0,1.5054119]
[1740591060160,0.173095,87161.0,87160.0,1.5054119]
[1740591060361,0.173095,87161.0,87160.0,0.0054119]
[1740591060362,0.172095,87161.0,87160.0,0.0054119]
[1740591060562,0.173095,87161.0,87160.0,0.0054119]
[1740591061146,0.172095,87161.0,87160.0,0.0054119]
[1740591062287,0.173095,87161.0,87160.0,0.0054119]
[1740591063190,0.001,87161.0,87160.0,0.0054119]
[1740591063317,0.001,87161.0,87160.0,0.2552089]
[1740591063516,0.001,87161.0,87160.0,0.1294119]
[1740591063730,0.001,87161.0,87160.0,1.6294119]
[1740591063945,0.172095,87161.0,87160.0,1.6294119]
[1740591064139,0.3283,87189.0,87160.0,1.6294119]
[1740591064685,0.172095,87161.0,87160.0,1.5517119]
[1740591065025,0.173095,87161.0,87160.0,1.5517119]
[1740591065475,0.173095,87161.0,87160.0,1.5054119]
[1740591065881,0.173095,87161.0,87160.0,0.0054119]
[1740591066058,0.172095,87161.0,87160.0,0.0054119]
[1740591066252,0.173095,87161.0,87160.0,0.0054119]
[1740591066578,0.172095,87161.0,87160.0,0.0054119]
[1740591067554,0.173095,87161.0,87160.0,0.0054119]
[1740591067944,0.172095,87161.0,87160.0,0.0054119]
[1740591068349,0.172095,87161.0,87160.0,0.0062589]
[1740591069111,0.173095,87161.0,87160.0,0.0062589]
[1740591070862,0.172095,87161.0,87160.0,9e-07]
[1740591071034,0.173095,87161.0,87160.0,9e-07]
[1740591071490,0.172095,87161.0,87160.0,9e-07]
[1740591071823,0.173095,87161.0,87160.0,9e-07]
[1740591072031,0.17212,87148.0,87147.0,9e-07]
[1740591072799,0.229487,87151.0,87136.0,0.000846]
[1740591072800,0.229487,87151.0,87140.0,9e-07]
[1740591072996,0.172136,87140.0,87139.0,4e-07]
[1740591073198,0.00241205,87147.0,87134.0,0.01077396]
[1740591073199,0.229513,87141.0,87134.0,3.6e-07]
[1740591073382,0.172146,87135.0,87134.0,3.6e-07]
[1740591073974,0.17217,87123.0,87106.0,0.0496]
[1740591074500,0.17217,87123.0,87096.0,0.005]
[1740591074660,0.17458205,87123.0,87096.0,0.005]
[1740591074868,0.17217,87123.0,87096.0,0.005]
[1740591075194,0.17217,87123.0,87097.0,1.5]
[1740591075396,0.17217,87123.0,87122.0,5.2e-07]
[1740591075602,0.55834251,87123.0,87122.0,5.2e-07]
[1740591075824,0.56234251,87123.0,87122.0,5.2e-07]
[1740591076064,0.54434251,87123.0,87122.0,5.2e-07]
[1740591076306,0.48058205,87123.0,87122.0,5.2e-07]
[1740591076511,0.48358205,87123.0,87122.0,5.2e-07]
[1740591077093,0.49958205,87123.0,87122.0,5.2e-07]
[1740591077297,0.50458205,87123.0,87122.0,5.2e-07]
[1740591077497,0.02,87117.0,87109.0,5.2e-07]
[1740591077724,0.172207,87104.0,87103.0,9.4e-07]
[1740591078617,0.17465377,87104.0,87103.0,9.4e-07]
[1740591078831,0.172207,87104.0,87103.0,9.4e-07]
[1740591079940,0.176207,87104.0,87103.0,9.4e-07]
[1740591080564,0.178207,87104.0,87103.0,9.4e-07]
[1740591080785,0.174207,87104.0,87103.0,9.4e-07]
[1740591081196,0.178207,87104.0,87103.0,9.4e-07]
[1740591081399,0.176207,87104.0,87103.0,9.4e-07]
[1740591081606,0.172207,87104.0,87103.0,9.4e-07]
[1740591081809,0.005,87104.0,87103.0,0.08280094]
[1740591082223,0.005,87104.0,87103.0,0.09734179]
[1740591082399,0.005,87104.0,87103.0,0.77394179]
[1740591082848,0.005,87104.0,87103.0,2.44615079]
[1740591083051,0.229516,87140.0,87104.0,0.31454085]
[1740591083232,0.3283,87160.0,87122.0,0.472172]
[1740591083412,0.229557,87125.0,87122.0,0.3]
[1740591083617,0.172163,87127.0,87122.0,0.299]
[1740591083819,0.229523,87137.0,87122.0,1.798]
[1740591083997,0.172165,87126.0,87122.0,1.798]
[1740591084199,0.17216,87128.0,87122.0,1.798]
[1740591084399,0.0018476,87123.0,87122.0,2.13984085]
[1740591084606,0.0018476,87123.0,87122.0,2.1253]
[1740591085014,0.0028476,87123.0,87122.0,2.31201285]
[1740591085250,0.0028476,87123.0,87122.0,2.13984085]
[1740591085678,0.0028476,87123.0,87122.0,2.1253]
[1740591086113,0.1750176,87123.0,87122.0,2.1253]
[1740591086313,0.1740176,87123.0,87122.0,0.6253]
[1740591086527,0.1750176,87123.0,87122.0,0.3293]
[1740591087217,0.1750176,87123.0,87122.0,0.3273]
[1740591087218,0.1730176,87123.0,87122.0,0.3273]
[1740591087392,0.1740176,87123.0,87122.0,0.3293]
[1740591087595,0.1750176,87123.0,87122.0,0.3353]
[1740591087757,0.1740176,87123.0,87122.0,0.3273]
[1740591088162,0.0018476,87123.0,87122.0,0.3333]
[1740591088413,0.0008476,87123.0,87122.0,0.3293]
[1740591088826,0.1730176,87123.0,87122.0,0.3293]
[1740591089121,0.1730176,87123.0,87122.0,0.002]
[1740591089332,0.172194,87111.0,87110.0,0.1227]
[1740591090083,0.172194,87111.0,87110.0,0.0457]
[1740591090311,0.172207,87104.0,87100.0,0.0777]
[1740591090667,0.0008476,87123.0,87100.0,0.0777]
[1740591090909,0.001,87111.0,87110.0,0.002]
[1740591091116,0.2304076,87123.0,87104.0,0.3]
[1740591091241,0.0008476,87123.0,87103.0,9.4e-07]
[1740591091453,0.229565,87121.0,87110.0,0.002]
[1740591091655,0.172194,87111.0,87104.0,0.3]
[1740591091915,0.0008476,87123.0,87104.0,0.3]
[1740591092722,0.172186,87115.0,87106.0,0.172202]
[1740591092928,0.172186,87115.0,87103.0,9.4e-07]
[1740591092929,0.0008476,87123.0,87103.0,9.4e-07]
[1740591093140,0.172207,87104.0,87103.0,9.4e-07]
[1740591093762,0.00207591,87122.0,87104.0,0.22961]
[1740591094012,0.0008476,87123.0,87103.0,9.4e-07]
[1740591094194,0.0008476,87123.0,87111.0,0.3]
[1740591094195,0.2304086,87123.0,87111.0,0.3]
[1740591094396,0.172176,87120.0,87111.0,0.3]
[1740591094596,0.0008476,87123.0,87112.0,0.0492]
[1740591095256,0.17219,87113.0,87112.0,0.0492]
[1740591095431,0.17219,87113.0,87112.0,1.8492]
[1740591095778,0.0008476,87123.0,87113.0,0.3]
[1740591095779,0.172181,87118.0,87113.0,0.3]
[1740591096024,0.172188,87114.0,87113.0,0.3]
[1740591096223,0.172172,87122.0,87113.0,0.3]
[1740591096625,0.001,87120.0,87113.0,0.3]
[1740591096798,0.229563,87122.0,87113.0,0.3]
[1740591097103,0.0008476,87123.0,87113.0,0.299]
[1740591097325,0.229563,87122.0,87113.0,0.299]
[1740591097533,0.0008476,87123.0,87113.0,0.299]
[1740591097681,0.001,87118.0,87113.0,0.306]
[1740591097900,0.172182,87117.0,87113.0,0.304]
[1740591098101,0.001,87118.0,87113.0,0.304]
[1740591098413,0.001,87118.0,87113.0,0.307]
[1740591098626,0.229579,87116.0,87113.0,0.307]
[1740591098828,0.001,87118.0,87113.0,0.307]
[1740591099053,0.001,87118.0,87113.0,0.302]
[1740591099409,0.172188,87114.0,87113.0,0.002]
[1740591100145,0.17219,87113.0,87112.0,0.0492]
[1740591101811,0.001,87114.0,87112.0,0.0492]
[1740591102020,0.001,87114.0,87113.0,0.47219]
[1740591102431,0.001,87114.0,87113.0,0.65633453]
[1740591102648,0.10171577,87154.0,87122.0,0.61131285]
[1740591103176,0.229517,87140.0,87122.0,0.61131285]
[1740591103378,0.10171577,87154.0,87122.0,0.61131285]
[1740591103579,0.172142,87138.0,87122.0,0.61031285]
[1740591103744,0.10171577,87154.0,87122.0,0.60931285]
[1740591103745,0.172157,87130.0,87122.0,0.60931285]
[1740591103944,0.172145,87136.0,87122.0,0.60931285]
[1740591104158,0.10171577,87154.0,87122.0,0.4226]
[1740591104159,0.1730176,87123.0,87122.0,0.4226]
[1740591104359,0.0018476,87123.0,87122.0,0.4246]
[1740591104559,0.1740176,87123.0,87122.0,0.4246]
[1740591104941,0.1750176,87123.0,87122.0,0.4266]
[1740591105447,0.1750176,87123.0,87122.0,0.004]
[1740591105856,0.1740176,87123.0,87122.0,0.002]
[1740591106033,0.1730176,87123.0,87122.0,0.007]
[1740591106455,0.0008476,87123.0,87122.0,0.307]
[1740591106610,0.0008476,87123.0,87122.0,0.3]
[1740591106823,0.0008476,87123.0,87122.0,0.31454085]
[1740591107036,0.0008476,87123.0,87122.0,1.98871285]
[1740591107470,0.0008476,87123.0,87122.0,1.81754085]
[1740591107674,0.0008476,87123.0,87122.0,1.82454085]
[1740591107849,0.1730176,87123.0,87122.0,0.307]
[1740591108212,0.1730176,87123.0,87122.0,0.007]
[1740591108778,0.172192,87112.0,87111.0,0.3779]
[1740591109303,0.172194,87111.0,87110.0,0.0004237]
[1740591111386,0.172194,87111.0,87110.0,0.0064237]
[1740591112843,0.172194,87111.0,87110.0,1.5004237]
[1740591113443,0.172194,87111.0,87110.0,1.5014237]
[1740591113618,0.172194,87111.0,87110.0,1.5054237]
[1740591114035,0.173194,87111.0,87110.0,1.5114237]
[1740591114450,0.173194,87111.0,87110.0,0.0114237]
[1740591114857,0.173194,87111.0,87110.0,7e-07]
[1740591115069,0.2364309,87111.0,87110.0,7e-07]
[1740591115218,0.2643863,87111.0,87110.0,7e-07]
[1740591115419,0.172221,87097.0,87096.0,6.4e-07]
[1740591115844,0.17436174,87097.0,87096.0,6.4e-07]
[1740591116264,0.172221,87097.0,87096.0,6.4e-07]
[1740591117042,0.175221,87097.0,87096.0,6.4e-07]
[1740591117997,0.177221,87097.0,87096.0,6.4e-07]
[1740591118210,0.177221,87097.0,87072.0,0.0008468]
[1740591118211,0.172241,87087.0,87086.0,8.4e-07]
[1740591118423,0.17225555,87089.0,87086.0,8.4e-07]
[1740591118635,0.172241,87087.0,87086.0,0.00012434]
[1740591118837,0.0202491,87089.0,87086.0,3.4e-07]
[1740591119035,0.172241,87087.0,87086.0,3.4e-07]
[1740591119802,0.02136178,87087.0,87083.0,3.4e-07]
[1740591120006,0.172247,87084.0,87083.0,3.4e-07]
[1740591121043,0.19360878,87084.0,87083.0,3.4e-07]
[1740591121451,0.19760878,87084.0,87083.0,3.4e-07]
[1740591121863,0.172249,87083.0,87082.0,5.4e-07]
[1740591122066,0.172249,87083.0,87071.0,3.4e-07]
[1740591122067,0.172271,87072.0,87071.0,3.4e-07]
[1740591122444,0.17309085,87072.0,87071.0,3.4e-07]
[1740591122694,0.19309085,87072.0,87071.0,3.4e-07]
[1740591122888,0.49309085,87072.0,87071.0,3.4e-07]
[1740591123092,0.49769785,87072.0,87071.0,3.4e-07]
[1740591123570,0.51900583,87072.0,87071.0,3.4e-07]
[1740591124382,0.52400583,87072.0,87071.0,3.4e-07]
[1740591124585,0.54500583,87072.0,87071.0,3.4e-07]
[1740591124792,0.55100583,87072.0,87071.0,3.4e-07]
[1740591125166,0.55954668,87072.0,87071.0,3.4e-07]
[1740591125378,0.21118598,87072.0,87071.0,3.4e-07]
[1740591126187,0.20657898,87072.0,87071.0,3.4e-07]
[1740591126427,0.24061332,87072.0,87071.0,3.4e-07]
[1740591126640,0.06834232,87072.0,87071.0,3.4e-07]
[1740591126816,0.06834232,87072.0,87071.0,0.30000034]
[1740591127022,0.06834232,87072.0,87071.0,2.11301419]
[1740591127241,0.06234232,87072.0,87071.0,1.94074119]
[1740591127580,0.06334232,87072.0,87071.0,2.11301419]
[1740591127785,0.02830798,87072.0,87071.0,1.94074119]
[1740591128012,0.02130798,87072.0,87071.0,1.93516529]
[1740591128184,0.02430798,87072.0,87071.0,1.93516529]
[1740591128384,0.19657898,87072.0,87071.0,1.92062444]
[1740591128570,0.003,87072.0,87071.0,1.92062444]
[1740591128778,0.001,87072.0,87071.0,2.10743829]
[1740591129020,0.001,87072.0,87071.0,1.6266241]
[1740591129215,0.002,87072.0,87071.0,1.6266241]
[1740591129444,0.174271,87072.0,87071.0,1.6266241]
[1740591129760,0.002,87072.0,87071.0,1.6266241]
[1740591129993,0.02230798,87072.0,87071.0,1.6266241]
[1740591130230,0.19457898,87072.0,87071.0,1.9266241]
[1740591130635,0.19357898,87072.0,87071.0,1.9266241]
[1740591130787,0.22761686,87072.0,87071.0,0.0489241]
[1740591130988,0.22761686,87072.0,87071.0,0.0004241]
[1740591131420,0.22861686,87072.0,87071.0,0.0004241]
[1740591131683,0.22761686,87072.0,87071.0,0.0004241]
[1740591132048,0.22861686,87072.0,87071.0,0.0014241]
[1740591132390,0.22961686,87072.0,87071.0,0.0014241]
[1740591132592,0.22861686,87072.0,87071.0,0.0004241]
[1740591133002,0.19557898,87072.0,87071.0,0.0004241]
[1740591133425,0.19457898,87072.0,87071.0,0.0004241]
[1740591133637,0.19657898,87072.0,87071.0,0.0004241]
[1740591134352,0.19557898,87072.0,87071.0,0.0004241]
[1740591134690,0.19757898,87072.0,87071.0,0.0004241]
[1740591135312,0.19857898,87072.0,87071.0,0.0004241]
[1740591135786,0.19657898,87072.0,87071.0,0.0004241]
[1740591136689,0.02430798,87072.0,87071.0,0.0004241]
[1740591136945,0.19657898,87072.0,87071.0,0.0004241]
[1740591137618,0.19357898,87072.0,87071.0,0.0004241]
[1740591137819,0.30060998,87072.0,87071.0,1e-07]
[1740591138081,0.19429388,87072.0,87071.0,1e-07]
[1740591138560,0.20525388,87072.0,87071.0,1e-07]
[1740591138800,0.172312,87051.0,87050.0,3e-08]
[1740591139054,0.172312,87051.0,87050.0,0.00041241]
[1740591139587,0.19861998,87051.0,87050.0,0.00041241]
[1740591139839,0.19861998,87051.0,87050.0,4.1e-07]
[1740591140089,0.19933488,87051.0,87050.0,4.1e-07]
[1740591140361,0.20533488,87051.0,87045.0,4.1e-07]
[1740591140614,0.172322,87046.0,87045.0,4.1e-07]
[1740591140850,0.1730369,87046.0,87045.0,4.1e-07]
[1740591141314,0.1839969,87046.0,87045.0,4.1e-07]
[1740591141579,0.183282,87046.0,87045.0,4.1e-07]
[1740591141838,0.172322,87046.0,87045.0,4.1e-07]
[1740591142099,0.19362998,87046.0,87045.0,0.07690041]
[1740591142336,0.19362998,87046.0,87045.0,4.1e-07]
[1740591142337,0.19662998,87046.0,87045.0,4.1e-07]
[1740591142584,0.20062998,87046.0,87045.0,4.1e-07]
[1740591142820,0.179322,87046.0,87045.0,4.1e-07]
[1740591143053,0.172322,87046.0,87045.0,4.1e-07]
[1740591146269,0.173322,87046.0,87045.0,4.1e-07]
[1740591146984,0.172322,87046.0,87045.0,4.1e-07]
[1740591147399,0.25937529,87046.0,87045.0,4.1e-07]
[1740591147859,0.17309806,87046.0,87045.0,4.1e-07]
[1740591148157,0.17409806,87046.0,87045.0,4.1e-07]
[1740591148365,0.20866106,87046.0,87045.0,4.1e-07]
[1740591148577,0.20766106,87046.0,87045.0,4.1e-07]
[1740591148917,0.21466106,87046.0,87045.0,4.1e-07]
[1740591149323,0.3,87045.0,87015.0,5.1e-07]
[1740591149540,0.172382,87016.0,87015.0,5.1e-07]
[1740591150320,0.177382,87016.0,87015.0,5.1e-07]
[1740591150900,0.177382,87016.0,87015.0,0.0001242]
[1740591151113,0.005,87016.0,87015.0,0.0001242]
[1740591151312,0.177382,87016.0,87015.0,0.0001242]
[1740591152310,0.178382,87016.0,87015.0,0.0001242]
[1740591152516,0.178382,87016.0,87015.0,0.1239242]
[1740591152725,0.178382,87016.0,87015.0,1.6239242]
[1740591152918,0.178382,87016.0,87015.0,0.0001242]
[1740591153136,0.173382,87016.0,87015.0,0.0001242]
[1740591153347,0.178382,87016.0,87015.0,0.0001242]
[1740591154000,0.177382,87016.0,87015.0,0.0001242]
[1740591154417,0.178382,87016.0,87015.0,0.0001242]
[1740591154807,0.177382,87016.0,87015.0,0.0001242]
[1740591155308,0.178382,87016.0,87015.0,2e-07]
[1740591155835,0.172382,87016.0,87015.0,2e-07]
[1740591156041,0.177382,87016.0,87015.0,2e-07]
[1740591156620,0.229813,87028.0,87015.0,2e-07]
[1740591156820,0.172379,87018.0,87017.0,0.0784]
[1740591157254,0.172382,87016.0,87015.0,2e-07]
[1740591157797,0.173382,87016.0,87015.0,2e-07]
[1740591158016,0.172382,87016.0,87015.0,2e-07]
[1740591158229,0.177382,87016.0,87015.0,2e-07]
[1740591158698,0.172395,87009.0,87008.0,1e-07]
[1740591158908,0.172395,87009.0,87008.0,0.00012384]
[1740591159108,0.17292444,87009.0,87008.0,0.00012384]
[1740591159340,0.172395,87009.0,87008.0,0.00012384]
[1740591159770,0.173395,87009.0,87008.0,0.00012384]
[1740591160384,0.19469847,87009.0,87008.0,0.04992384]
[1740591160590,0.19469847,87009.0,87008.0,0.05292384]
[1740591160791,0.19469847,87009.0,87008.0,0.04992384]
[1740591160988,0.19469847,87009.0,87008.0,0.05392384]
[1740591161193,0.19369847,87009.0,87008.0,0.05392384]
[1740591161404,0.19369847,87009.0,87008.0,0.05192384]
[1740591161601,0.19369847,87009.0,87008.0,0.00212384]
[1740591161878,0.19469847,87009.0,87008.0,0.00812384]
[1740591162174,0.19469847,87009.0,87008.0,0.00612384]
[1740591162380,0.19569847,87009.0,87008.0,0.00912384]
[1740591162796,0.19469847,87009.0,87008.0,1.80612384]
[1740591163208,0.19369847,87009.0,87008.0,1.80012384]
[1740591163418,0.19369847,87009.0,87008.0,1.80312384]
[1740591163618,0.19369847,87009.0,87008.0,1.80012384]
[1740591163771,0.19369847,87009.0,87008.0,1.50012384]
[1740591163978,0.19469847,87009.0,87008.0,1.50312384]
[1740591164197,0.19469847,87009.0,87008.0,1.80312384]
[1740591164379,0.19469847,87009.0,87008.0,0.00312384]
[1740591164575,0.19569847,87009.0,87008.0,0.00612384]
[1740591164785,0.19469847,87009.0,87008.0,0.00312384]
[1740591165372,0.19469847,87009.0,87008.0,0.00612384]
[1740591165993,0.19469847,87009.0,87008.0,8.4e-07]
[1740591166202,0.172411,87001.0,87000.0,0.0131066]
[1740591167158,0.172411,87001.0,87000.0,6e-07]
[1740591168136,0.172411,87001.0,86995.0,1.5004239]
[1740591168137,0.172421,86996.0,86995.0,1.5004239]
[1740591169257,0.22787328,86996.0,86995.0,1.5004239]
[1740591169656,0.22787328,86996.0,86995.0,1.5034239]
[1740591170806,0.22787328,86996.0,86995.0,0.003]
[1740591171208,0.22787328,86996.0,86994.0,0.005]
[1740591171209,0.172423,86995.0,86994.0,0.005]
[1740591172435,0.174423,86995.0,86994.0,0.005]
[1740591172953,0.19372647,86995.0,86994.0,0.005]
[1740591173331,0.19372647,86995.0,86994.0,0.007]
[1740591173552,0.19472647,86995.0,86994.0,0.007]
[1740591173766,0.22788966,86995.0,86994.0,0.007]
[1740591174329,0.22788966,86995.0,86994.0,1.507]
[1740591175455,0.22788966,86995.0,86994.0,1.505]
[1740591175652,0.05546666,86995.0,86994.0,2.31926585]
[1740591175855,0.05546666,86995.0,86994.0,2.44866585]
[1740591176269,0.05746666,86995.0,86994.0,2.44866585]
[1740591176477,0.0008488,87001.0,87000.0,0.472413]
[1740591176725,0.0008488,87001.0,87000.0,0.61475385]
[1740591176863,0.0008488,87001.0,87000.0,0.61375385]
[1740591177067,0.0008488,87001.0,87000.0,2.11375385]
[1740591177266,0.0008488,87001.0,87000.0,2.11275385]
[1740591177706,0.0018488,87001.0,87000.0,2.11275385]
[1740591177911,0.0018488,87001.0,87000.0,1.94234085]
[1740591178352,0.0018488,87001.0,87000.0,2.26964085]
[1740591178483,0.17707356,87003.0,87000.0,1.5457]
[1740591178684,0.172423,86995.0,86994.0,0.00507]
[1740591179117,0.229847,87015.0,86994.0,0.00507]
[1740591179497,0.3283,87038.0,86995.0,0.01454085]
[1740591179724,0.229835,87019.0,86995.0,0.01454085]
[1740591179929,0.002,87001.0,87000.0,0.54585385]
[1740591180147,0.002,87001.0,87000.0,0.96573385]
[1740591180350,0.10171577,87049.0,87001.0,0.31454085]
[1740591180562,0.10171577,87049.0,87015.0,0.18692485]
[1740591180782,0.10171577,87049.0,87015.0,0.31253345]
[1740591180986,0.172362,87026.0,87015.0,0.31092485]
[1740591181236,0.229825,87023.0,87015.0,0.13754085]
[1740591181430,0.22981,87029.0,87015.0,0.30992485]
[1740591181632,0.172365,87025.0,87015.0,0.30992485]
[1740591181838,0.229782,87039.0,87015.0,0.30992485]
[1740591182070,0.229812,87028.0,87015.0,0.30992485]
[1740591182310,0.1732308,87016.0,87015.0,0.424]
[1740591182517,0.1732308,87016.0,87015.0,0.3529]
[1740591182518,0.1742308,87016.0,87015.0,0.3529]
[1740591182726,0.1742308,87016.0,87015.0,0.0529]
[1740591182727,0.1752308,87016.0,87015.0,0.0529]
[1740591182928,0.1752308,87016.0,87015.0,0.007]
[1740591183135,0.1752308,87016.0,87005.0,0.0788]
[1740591183136,0.172401,87006.0,87005.0,0.0788]
[1740591183578,0.172407,87003.0,87002.0,0.0453]
[1740591183752,0.0008488,87016.0,87002.0,0.0453]
[1740591183980,0.1732308,87016.0,87015.0,0.003]
[1740591184191,0.0008488,87016.0,87006.0,0.01454085]
[1740591184394,0.0008488,87016.0,87004.0,0.3]
[1740591184600,0.172403,87005.0,87004.0,0.3]
[1740591184803,0.172398,87008.0,87004.0,0.3]
[1740591185039,0.0018488,87016.0,87003.0,0.3]
[1740591185040,0.229858,87011.0,87003.0,0.3]